[Event "Titled Tuesday Blitz February 22 Early 2022"]
[White "Gabdrakhmanov, Azat"]
[Black "Tymrakiewicz, Rafal"]
[WhiteFideId "34189197"]
[BlackFideId "1108832"]
[WhiteElo "2279"]
[BlackElo "2205"]
[Result "1/2-1/2"]
[Round "07"]
[TimeControl "180+1"]
[Date "2022.02.22"]
[WhiteClock "0:00:06"]
[BlackClock "0:00:11"]

1. e4 {[%clk 0:03:00]}  Nf6 {[%clk 0:02:59]} 2. e5 {[%clk 0:03:00]}  Nd5 {[%clk 0:02:59]} 3. d4 {[%clk 0:03:01]}  d6 {[%clk 0:02:59]} 4. Nf3 {[%clk 0:03:02]}  g6 {[%clk 0:02:59]} 5. Be2 {[%clk 0:03:02]}  Bg7 {[%clk 0:02:59]} 6. O-O {[%clk 0:03:02]}  O-O {[%clk 0:02:59]} 7. h3 {[%clk 0:03:02]}  dxe5 {[%clk 0:02:58]} 8. Nxe5 {[%clk 0:03:01]}  Bxe5 {[%clk 0:02:58]} 9. dxe5 {[%clk 0:03:01]}  Nc6 {[%clk 0:02:58]} 10. f4 {[%clk 0:02:39]}  Bf5 {[%clk 0:02:58]} 11. c3 {[%clk 0:02:35]}  Nb6 {[%clk 0:02:51]} 12. Na3 {[%clk 0:02:34]}  Qxd1 {[%clk 0:02:49]} 13. Rxd1 {[%clk 0:02:34]}  Rfd8 {[%clk 0:02:44]} 14. Be3 {[%clk 0:02:34]}  a6 {[%clk 0:02:43]} 15. Bf3 {[%clk 0:02:22]}  Bd3 {[%clk 0:02:34]} 16. Kf2 {[%clk 0:02:20]}  Rd7 {[%clk 0:02:29]} 17. Rd2 {[%clk 0:02:18]}  Rad8 {[%clk 0:02:26]} 18. Rad1 {[%clk 0:02:17]}  Bf5 {[%clk 0:02:17]} 19. Rxd7 {[%clk 0:02:06]}  Rxd7 {[%clk 0:02:16]} 20. Rxd7 {[%clk 0:02:06]}  Bxd7 {[%clk 0:02:15]} 21. b3 {[%clk 0:02:05]}  Nd8 {[%clk 0:02:08]} 22. c4 {[%clk 0:01:59]}  Bc6 {[%clk 0:02:08]} 23. Bxb6 {[%clk 0:01:44]}  cxb6 {[%clk 0:02:06]} 24. Nc2 {[%clk 0:01:44]}  Bxf3 {[%clk 0:02:02]} 25. Kxf3 {[%clk 0:01:45]}  Nc6 {[%clk 0:02:03]} 26. Ke4 {[%clk 0:01:44]}  e6 {[%clk 0:01:59]} 27. Nd4 {[%clk 0:01:31]}  Kf8 {[%clk 0:01:51]} 28. Nf3 {[%clk 0:01:06]}  Ke7 {[%clk 0:01:49]} 29. a3 {[%clk 0:01:07]}  Kd7 {[%clk 0:01:38]} 30. b4 {[%clk 0:01:06]}  h6 {[%clk 0:01:33]} 31. g4 {[%clk 0:01:04]}  b5 {[%clk 0:01:19]} 32. cxb5 {[%clk 0:00:58]}  axb5 {[%clk 0:01:19]} 33. h4 {[%clk 0:00:52]}  b6 {[%clk 0:01:15]} 34. f5 {[%clk 0:00:36]}  Ke7 {[%clk 0:01:15]} 35. f6+ {[%clk 0:00:24]}  Kf8 {[%clk 0:01:11]} 36. Nd2 {[%clk 0:00:20]}  Ke8 {[%clk 0:01:09]} 37. Nb1 {[%clk 0:00:20]}  Kf8 {[%clk 0:01:06]} 38. Nc3 {[%clk 0:00:20]}  Na7 {[%clk 0:01:06]} 39. Kd4 {[%clk 0:00:18]}  Ke8 {[%clk 0:01:06]} 40. a4 {[%clk 0:00:17]}  bxa4 {[%clk 0:01:02]} 41. Nxa4 {[%clk 0:00:18]}  Nc6+ {[%clk 0:00:50]} 42. Ke4 {[%clk 0:00:18]}  Nxb4 {[%clk 0:00:44]} 43. Nxb6 {[%clk 0:00:19]}  Kf8 {[%clk 0:00:42]} 44. Nc4 {[%clk 0:00:18]}  Nd5 {[%clk 0:00:42]} 45. Nd6 {[%clk 0:00:18]}  Nc3+ {[%clk 0:00:41]} 46. Kf4 {[%clk 0:00:18]}  Nd5+ {[%clk 0:00:41]} 47. Ke4 {[%clk 0:00:18]}  Nc3+ {[%clk 0:00:41]} 48. Kf3 {[%clk 0:00:18]}  Kg8 {[%clk 0:00:39]} 49. Ne4 {[%clk 0:00:17]}  Nd5 {[%clk 0:00:39]} 50. Nd2 {[%clk 0:00:16]}  h5 {[%clk 0:00:38]} 51. gxh5 {[%clk 0:00:16]}  gxh5 {[%clk 0:00:38]} 52. Nc4 {[%clk 0:00:16]}  Kh7 {[%clk 0:00:37]} 53. Nd6 {[%clk 0:00:16]}  Kg6 {[%clk 0:00:37]} 54. Ke4 {[%clk 0:00:16]}  Nc3+ {[%clk 0:00:37]} 55. Kf3 {[%clk 0:00:16]}  Nd5 {[%clk 0:00:36]} 56. Ke4 {[%clk 0:00:16]}  Nb6 {[%clk 0:00:36]} 57. Ne8 {[%clk 0:00:15]}  Nd7 {[%clk 0:00:35]} 58. Kf4 {[%clk 0:00:15]}  Nc5 {[%clk 0:00:32]} 59. Nd6 {[%clk 0:00:15]}  Nd3+ {[%clk 0:00:32]} 60. Ke4 {[%clk 0:00:15]}  Ne1 {[%clk 0:00:32]} 61. Nc8 {[%clk 0:00:08]}  Ng2 {[%clk 0:00:29]} 62. Nb6 {[%clk 0:00:08]}  Nxh4 {[%clk 0:00:28]} 63. Nd7 {[%clk 0:00:08]}  Nf5 {[%clk 0:00:24]} 64. Nf8+ {[%clk 0:00:08]}  Kg5 {[%clk 0:00:23]} 65. Nxe6+ {[%clk 0:00:05]}  Kg6 {[%clk 0:00:17]} 66. Nf4+ {[%clk 0:00:04]}  Kg5 {[%clk 0:00:18]} 67. Nh3+ {[%clk 0:00:04]}  Kg6 {[%clk 0:00:18]} 68. Nf4+ {[%clk 0:00:05]}  Kg5 {[%clk 0:00:18]} 69. Nd5 {[%clk 0:00:05]}  Nh6 {[%clk 0:00:15]} 70. Ne7 {[%clk 0:00:04]}  h4 {[%clk 0:00:12]} 71. Kf3 {[%clk 0:00:04]}  h3 {[%clk 0:00:11]} 72. Kg3 {[%clk 0:00:05]}  h2 {[%clk 0:00:11]} 73. Kxh2 {[%clk 0:00:05]}  Kf4 {[%clk 0:00:12]} 74. Ng8 {[%clk 0:00:05]}  Kxe5 {[%clk 0:00:11]} 75. Nxh6 {[%clk 0:00:05]}  Kxf6 {[%clk 0:00:11]} 76. Nxf7 {[%clk 0:00:06]} 1/2-1/2


[Site "https://www.chess.com"]

[Event "Titled Tuesday Blitz February 22 Early 2022"]
[White "Garv Gaur"]
[Black "Jakubowski, Krzysztof"]
[WhiteFideId "45030839"]
[BlackFideId "1112848"]
[WhiteElo "1950"]
[BlackElo "2365"]
[Result "0-1"]
[Round "07"]
[TimeControl "180+1"]
[Date "2022.02.22"]
[WhiteClock "0:00:02"]
[BlackClock "0:00:07"]

1. d4 {[%clk 0:03:00]}  Nf6 {[%clk 0:02:59]} 2. Nf3 {[%clk 0:03:00]}  e6 {[%clk 0:02:58]} 3. c4 {[%clk 0:03:00]}  b6 {[%clk 0:02:57]} 4. g3 {[%clk 0:03:00]}  Bb7 {[%clk 0:02:56]} 5. Bg2 {[%clk 0:03:00]}  Be7 {[%clk 0:02:55]} 6. O-O {[%clk 0:02:57]}  O-O {[%clk 0:02:54]} 7. Nc3 {[%clk 0:02:57]}  Ne4 {[%clk 0:02:53]} 8. Qd3 {[%clk 0:02:57]}  Nxc3 {[%clk 0:02:52]} 9. Qxc3 {[%clk 0:02:58]}  d6 {[%clk 0:02:50]} 10. Qe3 {[%clk 0:02:27]}  Nd7 {[%clk 0:02:46]} 11. d5 {[%clk 0:02:21]}  e5 {[%clk 0:02:36]} 12. Ng5 {[%clk 0:02:16]}  Ba6 {[%clk 0:02:07]} 13. b3 {[%clk 0:02:14]}  b5 {[%clk 0:02:07]} 14. cxb5 {[%clk 0:01:48]}  Bxb5 {[%clk 0:02:06]} 15. Re1 {[%clk 0:01:48]}  a5 {[%clk 0:02:01]} 16. Ne4 {[%clk 0:01:45]}  f5 {[%clk 0:01:47]} 17. Nc3 {[%clk 0:01:44]}  Ba6 {[%clk 0:01:47]} 18. f3 {[%clk 0:01:32]}  Qb8 {[%clk 0:01:40]} 19. Qf2 {[%clk 0:01:29]}  Bf6 {[%clk 0:01:27]} 20. e4 {[%clk 0:01:26]}  Nc5 {[%clk 0:01:27]} 21. Be3 {[%clk 0:01:25]}  Nd3 {[%clk 0:01:26]} 22. Qd2 {[%clk 0:01:24]}  Nxe1 {[%clk 0:01:25]} 23. Rxe1 {[%clk 0:01:25]}  Qb4 {[%clk 0:01:18]} 24. exf5 {[%clk 0:01:19]}  a4 {[%clk 0:01:09]} 25. g4 {[%clk 0:01:11]}  axb3 {[%clk 0:00:49]} 26. axb3 {[%clk 0:01:03]}  Bh4 {[%clk 0:00:46]} 27. Rc1 {[%clk 0:01:02]}  Qxb3 {[%clk 0:00:39]} 28. Ne4 {[%clk 0:01:00]}  Qd3 {[%clk 0:00:34]} 29. Rxc7 {[%clk 0:00:50]}  Qxd2 {[%clk 0:00:28]} 30. Bxd2 {[%clk 0:00:34]}  Bd3 {[%clk 0:00:19]} 31. Bf1 {[%clk 0:00:28]}  Ra1 {[%clk 0:00:17]} 32. Bc1 {[%clk 0:00:28]}  Bxe4 {[%clk 0:00:12]} 33. fxe4 {[%clk 0:00:28]}  Rb8 {[%clk 0:00:12]} 34. Kg2 {[%clk 0:00:05]}  Rbb1 {[%clk 0:00:12]} 35. Bb5 {[%clk 0:00:01]}  Rxc1 {[%clk 0:00:10]} 36. Rb7 {[%clk 0:00:01]}  Rc8 {[%clk 0:00:08]} 37. Bd7 {[%clk 0:00:01]}  Rd8 {[%clk 0:00:09]} 38. Be6+ {[%clk 0:00:02]}  Kh8 {[%clk 0:00:09]} 39. g5 {[%clk 0:00:02]}  Bxg5 {[%clk 0:00:09]} 40. Kh3 {[%clk 0:00:03]}  Bf6 {[%clk 0:00:08]} 41. Kg4 {[%clk 0:00:03]}  Rf1 {[%clk 0:00:08]} 42. Kg3 {[%clk 0:00:02]}  Rf4 {[%clk 0:00:08]} 43. Rb4 {[%clk 0:00:02]}  g6 {[%clk 0:00:07]} 44. fxg6 {[%clk 0:00:02]}  hxg6 {[%clk 0:00:08]} 45. Ra4 {[%clk 0:00:02]}  Kg7 {[%clk 0:00:08]} 46. h4 {[%clk 0:00:02]}  Kh6 {[%clk 0:00:08]} 47. h5 {[%clk 0:00:03]}  gxh5 {[%clk 0:00:07]} 48. Bf5 {[%clk 0:00:02]}  Rb8 {[%clk 0:00:07]} 0-1


[Site "https://www.chess.com"]

[Event "Titled Tuesday Blitz February 22 Early 2022"]
[White "Glavina, Pablo"]
[Black "volunteers1998"]
[WhiteFideId "100234"]
[WhiteElo "2369"]
[BlackElo "2264"]
[Result "1-0"]
[Round "07"]
[TimeControl "180+1"]
[Date "2022.02.22"]
[WhiteClock "0:00:07"]
[BlackClock "0:00:04"]

1. e4 {[%clk 0:03:00]}  c5 {[%clk 0:02:59]} 2. Nf3 {[%clk 0:03:00]}  Nc6 {[%clk 0:02:59]} 3. d4 {[%clk 0:03:00]}  cxd4 {[%clk 0:02:57]} 4. Nxd4 {[%clk 0:03:01]}  Nf6 {[%clk 0:02:57]} 5. Nc3 {[%clk 0:02:59]}  e5 {[%clk 0:02:55]} 6. Ndb5 {[%clk 0:02:58]}  d6 {[%clk 0:02:54]} 7. Bg5 {[%clk 0:02:55]}  a6 {[%clk 0:02:52]} 8. Na3 {[%clk 0:02:55]}  b5 {[%clk 0:02:47]} 9. Nd5 {[%clk 0:02:55]}  Be7 {[%clk 0:02:44]} 10. Bxf6 {[%clk 0:02:54]}  Bxf6 {[%clk 0:02:43]} 11. c4 {[%clk 0:02:55]}  b4 {[%clk 0:02:39]} 12. Nc2 {[%clk 0:02:55]}  a5 {[%clk 0:02:36]} 13. g3 {[%clk 0:02:53]}  O-O {[%clk 0:02:33]} 14. Bg2 {[%clk 0:02:54]}  Be6 {[%clk 0:02:24]} 15. O-O {[%clk 0:02:52]}  Rc8 {[%clk 0:02:23]} 16. b3 {[%clk 0:02:21]}  Bg5 {[%clk 0:02:20]} 17. f4 {[%clk 0:02:17]}  exf4 {[%clk 0:02:16]} 18. gxf4 {[%clk 0:02:16]}  Bh6 {[%clk 0:02:11]} 19. Nce3 {[%clk 0:02:01]}  Ne7 {[%clk 0:01:57]} 20. Qd3 {[%clk 0:01:43]}  Bxd5 {[%clk 0:01:47]} 21. Nxd5 {[%clk 0:01:40]}  Nxd5 {[%clk 0:01:47]} 22. Qxd5 {[%clk 0:01:40]}  Kh8 {[%clk 0:01:39]} 23. Rad1 {[%clk 0:01:40]}  Qb6+ {[%clk 0:01:20]} 24. Kh1 {[%clk 0:00:59]}  Rcd8 {[%clk 0:01:19]} 25. Rd3 {[%clk 0:00:54]}  Qc5 {[%clk 0:01:13]} 26. e5 {[%clk 0:00:29]}  Qxd5 {[%clk 0:01:10]} 27. Rxd5 {[%clk 0:00:29]}  dxe5 {[%clk 0:01:08]} 28. fxe5 {[%clk 0:00:28]}  Rxd5 {[%clk 0:01:02]} 29. cxd5 {[%clk 0:00:27]}  g6 {[%clk 0:01:02]} 30. d6 {[%clk 0:00:24]}  Kg7 {[%clk 0:00:57]} 31. Bd5 {[%clk 0:00:20]}  Be3 {[%clk 0:00:54]} 32. Kg2 {[%clk 0:00:20]}  Bd4 {[%clk 0:00:52]} 33. Kf3 {[%clk 0:00:20]}  Bxe5 {[%clk 0:00:49]} 34. d7 {[%clk 0:00:16]}  Rd8 {[%clk 0:00:43]} 35. Ke4 {[%clk 0:00:15]}  f6 {[%clk 0:00:40]} 36. Bc6 {[%clk 0:00:15]}  Kf7 {[%clk 0:00:36]} 37. h3 {[%clk 0:00:15]}  Ke7 {[%clk 0:00:34]} 38. Rd1 {[%clk 0:00:10]}  Ke6 {[%clk 0:00:27]} 39. Kf3 {[%clk 0:00:11]}  Bc7 {[%clk 0:00:22]} 40. Rd5 {[%clk 0:00:11]}  Ke7 {[%clk 0:00:17]} 41. Rd1 {[%clk 0:00:09]}  h5 {[%clk 0:00:14]} 42. Re1+ {[%clk 0:00:08]}  Be5 {[%clk 0:00:11]} 43. Rd1 {[%clk 0:00:07]}  g5 {[%clk 0:00:09]} 44. Rd5 {[%clk 0:00:07]}  Ke6 {[%clk 0:00:07]} 45. Rxa5 {[%clk 0:00:06]}  g4+ {[%clk 0:00:05]} 46. hxg4 {[%clk 0:00:06]}  hxg4+ {[%clk 0:00:05]} 47. Kxg4 {[%clk 0:00:07]}  f5+ {[%clk 0:00:05]} 48. Kf3 {[%clk 0:00:07]}  Kd6 {[%clk 0:00:04]} 49. Ba4 {[%clk 0:00:07]} 1-0


[Site "https://www.chess.com"]

[Event "Titled Tuesday Blitz February 22 Early 2022"]
[White "Golizadeh, Asghar"]
[Black "Muradov, Soltan"]
[WhiteFideId "12505269"]
[BlackFideId "14002108"]
[WhiteElo "2403"]
[BlackElo "1854"]
[Result "1-0"]
[Round "07"]
[TimeControl "180+1"]
[Date "2022.02.22"]
[WhiteClock "0:00:56"]
[BlackClock "0:01:28"]

1. e4 {[%clk 0:02:55]}  e5 {[%clk 0:02:59]} 2. Nc3 {[%clk 0:02:53]}  Nc6 {[%clk 0:02:44]} 3. Bc4 {[%clk 0:02:52]}  d6 {[%clk 0:02:43]} 4. d3 {[%clk 0:02:52]}  g6 {[%clk 0:02:43]} 5. f4 {[%clk 0:02:52]}  Bg7 {[%clk 0:02:42]} 6. Nf3 {[%clk 0:02:52]}  Nge7 {[%clk 0:02:38]} 7. O-O {[%clk 0:02:45]}  Na5 {[%clk 0:02:34]} 8. fxe5 {[%clk 0:02:11]}  Nxc4 {[%clk 0:02:31]} 9. dxc4 {[%clk 0:02:07]}  dxe5 {[%clk 0:02:29]} 10. Qxd8+ {[%clk 0:02:07]}  Kxd8 {[%clk 0:02:30]} 11. Ng5 {[%clk 0:01:52]}  Ke8 {[%clk 0:02:19]} 12. Nb5 {[%clk 0:01:44]}  f6 {[%clk 0:02:11]} 13. Nxc7+ {[%clk 0:01:24]}  Kd8 {[%clk 0:02:11]} 14. Nge6+ {[%clk 0:01:20]}  Kd7 {[%clk 0:02:08]} 15. Nxg7 {[%clk 0:01:17]}  Kxc7 {[%clk 0:02:07]} 16. Rxf6 {[%clk 0:01:17]}  Nc6 {[%clk 0:01:51]} 17. Rf7+ {[%clk 0:01:08]}  Kb6 {[%clk 0:01:50]} 18. Be3+ {[%clk 0:01:07]}  Ka6 {[%clk 0:01:51]} 19. c3 {[%clk 0:01:00]}  Bg4 {[%clk 0:01:36]} 20. b4 {[%clk 0:00:58]}  b5 {[%clk 0:01:36]} 21. a4 {[%clk 0:00:57]}  bxc4 {[%clk 0:01:28]} 22. b5+ {[%clk 0:00:58]}  Ka5 {[%clk 0:01:28]} 23. bxc6 {[%clk 0:00:58]}  Rac8 {[%clk 0:01:28]} 24. Rxa7# {[%clk 0:00:56]} 1-0


[Site "https://www.chess.com"]

[Event "Titled Tuesday Blitz February 22 Early 2022"]
[White "Goltseva, Ekaterina"]
[Black "wisdomboy"]
[WhiteFideId "24173770"]
[WhiteElo "2140"]
[BlackElo "2445"]
[Result "1-0"]
[Round "07"]
[TimeControl "180+1"]
[Date "2022.02.22"]
[WhiteClock "0:00:43"]
[BlackClock "0:00:51"]

1. d4 {[%clk 0:01:51]}  Nf6 {[%clk 0:02:59]} 2. c4 {[%clk 0:01:51]}  e6 {[%clk 0:02:59]} 3. Nc3 {[%clk 0:01:52]}  c5 {[%clk 0:02:59]} 4. d5 {[%clk 0:01:52]}  exd5 {[%clk 0:02:59]} 5. cxd5 {[%clk 0:01:52]}  d6 {[%clk 0:03:00]} 6. e4 {[%clk 0:01:53]}  g6 {[%clk 0:03:00]} 7. Nge2 {[%clk 0:01:54]}  Bg7 {[%clk 0:03:00]} 8. Ng3 {[%clk 0:01:54]}  O-O {[%clk 0:03:01]} 9. Be2 {[%clk 0:01:55]}  a6 {[%clk 0:03:00]} 10. a4 {[%clk 0:01:54]}  Nbd7 {[%clk 0:03:01]} 11. O-O {[%clk 0:01:54]}  Ne8 {[%clk 0:02:55]} 12. Bf4 {[%clk 0:01:52]}  Ne5 {[%clk 0:02:53]} 13. Qd2 {[%clk 0:01:52]}  f5 {[%clk 0:02:51]} 14. Bg5 {[%clk 0:01:50]}  Qc7 {[%clk 0:02:47]} 15. f4 {[%clk 0:01:45]}  Nd7 {[%clk 0:02:28]} 16. exf5 {[%clk 0:01:38]}  gxf5 {[%clk 0:02:29]} 17. Bd3 {[%clk 0:01:33]}  Ndf6 {[%clk 0:01:51]} 18. Nxf5 {[%clk 0:01:29]}  Bxf5 {[%clk 0:01:50]} 19. Bxf5 {[%clk 0:01:28]}  Kh8 {[%clk 0:01:50]} 20. Be6 {[%clk 0:01:26]}  h6 {[%clk 0:01:45]} 21. Bh4 {[%clk 0:01:17]}  c4 {[%clk 0:01:44]} 22. f5 {[%clk 0:01:12]}  b5 {[%clk 0:01:43]} 23. axb5 {[%clk 0:01:11]}  Qc5+ {[%clk 0:01:36]} 24. Bf2 {[%clk 0:01:11]}  Qb4 {[%clk 0:01:33]} 25. bxa6 {[%clk 0:01:10]}  Nc7 {[%clk 0:01:33]} 26. a7 {[%clk 0:01:09]}  Ng4 {[%clk 0:01:28]} 27. Bd4 {[%clk 0:01:06]}  Nxe6 {[%clk 0:01:23]} 28. dxe6 {[%clk 0:01:01]}  Ne5 {[%clk 0:01:14]} 29. f6 {[%clk 0:01:00]}  Bxf6 {[%clk 0:01:07]} 30. Qxh6+ {[%clk 0:00:59]}  Kg8 {[%clk 0:01:07]} 31. Rxf6 {[%clk 0:00:58]}  Rxf6 {[%clk 0:01:04]} 32. Qxf6 {[%clk 0:00:58]}  Qxb2 {[%clk 0:01:05]} 33. Rf1 {[%clk 0:00:52]}  Qd2 {[%clk 0:01:00]} 34. Bxe5 {[%clk 0:00:50]}  Qe3+ {[%clk 0:00:59]} 35. Kh1 {[%clk 0:00:47]}  dxe5 {[%clk 0:00:59]} 36. Nd5 {[%clk 0:00:43]}  Qxa7 {[%clk 0:00:52]} 37. Ne7+ {[%clk 0:00:43]}  Kh7 {[%clk 0:00:51]} 38. Qg6+ {[%clk 0:00:43]}  Kh8 {[%clk 0:00:51]} 39. Qh6# {[%clk 0:00:43]} 1-0


[Site "https://www.chess.com"]

[Event "Titled Tuesday Blitz February 22 Early 2022"]
[White "Guliev, Logman"]
[Black "Rodchenkov, Vitaly"]
[WhiteFideId "13400061"]
[BlackFideId "4152964"]
[WhiteElo "2128"]
[BlackElo "2337"]
[Result "1-0"]
[Round "07"]
[TimeControl "180+1"]
[Date "2022.02.22"]
[WhiteClock "0:01:36"]
[BlackClock "0:01:49"]

1. e4 {[%clk 0:03:00]}  c5 {[%clk 0:02:59]} 2. Nf3 {[%clk 0:03:00]}  d6 {[%clk 0:02:56]} 3. d4 {[%clk 0:03:00]}  cxd4 {[%clk 0:02:56]} 4. Nxd4 {[%clk 0:03:00]}  Nf6 {[%clk 0:02:56]} 5. Nc3 {[%clk 0:03:01]}  a6 {[%clk 0:02:56]} 6. f4 {[%clk 0:03:00]}  e5 {[%clk 0:02:55]} 7. Nf3 {[%clk 0:03:00]}  Nbd7 {[%clk 0:02:54]} 8. Bd3 {[%clk 0:03:00]}  Be7 {[%clk 0:02:53]} 9. O-O {[%clk 0:02:59]}  O-O {[%clk 0:02:53]} 10. Kh1 {[%clk 0:02:59]}  Qc7 {[%clk 0:02:53]} 11. a4 {[%clk 0:02:58]}  b6 {[%clk 0:02:52]} 12. Qe1 {[%clk 0:02:57]}  Bb7 {[%clk 0:02:52]} 13. fxe5 {[%clk 0:02:57]}  dxe5 {[%clk 0:02:52]} 14. Bg5 {[%clk 0:02:57]}  Rfe8 {[%clk 0:02:51]} 15. Nh4 {[%clk 0:02:56]}  Bf8 {[%clk 0:02:50]} 16. Nf5 {[%clk 0:02:56]}  Re6 {[%clk 0:02:30]} 17. Qh4 {[%clk 0:02:16]}  Rae8 {[%clk 0:02:27]} 18. Nd5 {[%clk 0:02:09]}  Nxd5 {[%clk 0:02:03]} 19. exd5 {[%clk 0:02:06]}  Rg6 {[%clk 0:02:03]} 20. Ne3 {[%clk 0:01:38]}  Rxg5 {[%clk 0:01:49]} 21. Qxh7# {[%clk 0:01:36]} 1-0


[Site "https://www.chess.com"]

[Event "Titled Tuesday Blitz February 22 Early 2022"]
[White "Hess, Robert"]
[Black "Kim, Sergey"]
[WhiteFideId "2022036"]
[BlackFideId "13700570"]
[WhiteElo "2803"]
[BlackElo "2635"]
[Result "0-1"]
[Round "07"]
[TimeControl "180+1"]
[Date "2022.02.22"]
[WhiteClock "0:00:02"]
[BlackClock "0:01:00"]

1. b3 {[%clk 0:02:45]}  Nf6 {[%clk 0:02:59]} 2. Bb2 {[%clk 0:02:46]}  g6 {[%clk 0:02:59]} 3. d3 {[%clk 0:02:46]}  Bg7 {[%clk 0:02:59]} 4. Nd2 {[%clk 0:02:47]}  d6 {[%clk 0:02:59]} 5. e3 {[%clk 0:02:48]}  O-O {[%clk 0:02:58]} 6. Ne2 {[%clk 0:02:47]}  e5 {[%clk 0:02:58]} 7. h3 {[%clk 0:02:48]}  c5 {[%clk 0:02:57]} 8. g4 {[%clk 0:02:48]}  Nc6 {[%clk 0:02:57]} 9. Bg2 {[%clk 0:02:48]}  d5 {[%clk 0:02:56]} 10. Ng3 {[%clk 0:02:48]}  Re8 {[%clk 0:02:51]} 11. g5 {[%clk 0:02:47]}  Nd7 {[%clk 0:02:47]} 12. Bxd5 {[%clk 0:02:46]}  Qxg5 {[%clk 0:02:46]} 13. Nde4 {[%clk 0:02:24]}  Qe7 {[%clk 0:02:45]} 14. h4 {[%clk 0:02:14]}  Nb4 {[%clk 0:02:39]} 15. Bc4 {[%clk 0:02:14]}  Nb6 {[%clk 0:02:39]} 16. h5 {[%clk 0:02:03]}  Nxc4 {[%clk 0:02:38]} 17. bxc4 {[%clk 0:02:01]}  Be6 {[%clk 0:02:25]} 18. hxg6 {[%clk 0:01:56]}  hxg6 {[%clk 0:02:24]} 19. a3 {[%clk 0:01:48]}  Nc6 {[%clk 0:02:22]} 20. Qe2 {[%clk 0:01:38]}  a6 {[%clk 0:02:10]} 21. Qf3 {[%clk 0:01:10]}  f5 {[%clk 0:01:59]} 22. Nc3 {[%clk 0:01:08]}  Rad8 {[%clk 0:01:54]} 23. O-O-O {[%clk 0:01:06]}  e4 {[%clk 0:01:15]} 24. Qg2 {[%clk 0:00:16]}  exd3 {[%clk 0:01:08]} 25. cxd3 {[%clk 0:00:14]}  Ne5 {[%clk 0:01:07]} 26. Nd5 {[%clk 0:00:14]}  Bxd5 {[%clk 0:01:05]} 27. cxd5 {[%clk 0:00:14]}  Qf7 {[%clk 0:01:05]} 28. e4 {[%clk 0:00:07]}  c4 {[%clk 0:01:03]} 29. dxc4 {[%clk 0:00:05]}  Nxc4 {[%clk 0:01:01]} 30. Bxg7 {[%clk 0:00:03]}  Qxg7 {[%clk 0:01:01]} 31. Nxf5 {[%clk 0:00:02]}  Qb2# {[%clk 0:01:00]} 0-1


[Site "https://www.chess.com"]

[Event "Titled Tuesday Blitz February 22 Early 2022"]
[White "Hjartarson, Johann"]
[Black "Eynullayev, Altay"]
[WhiteFideId "2300044"]
[BlackFideId "13413562"]
[WhiteElo "2484"]
[BlackElo "2079"]
[Result "1-0"]
[Round "07"]
[TimeControl "180+1"]
[Date "2022.02.22"]
[WhiteClock "0:00:28"]
[BlackClock "0:00:10"]

1. e4 {[%clk 0:03:00]}  c5 {[%clk 0:02:59]} 2. Nf3 {[%clk 0:03:00]}  e6 {[%clk 0:02:58]} 3. d4 {[%clk 0:02:59]}  cxd4 {[%clk 0:02:59]} 4. Nxd4 {[%clk 0:02:59]}  Nc6 {[%clk 0:02:59]} 5. Nc3 {[%clk 0:02:58]}  a6 {[%clk 0:02:59]} 6. g3 {[%clk 0:02:58]}  d6 {[%clk 0:02:55]} 7. Bg2 {[%clk 0:02:58]}  Bd7 {[%clk 0:02:52]} 8. O-O {[%clk 0:02:56]}  Nf6 {[%clk 0:02:51]} 9. Nb3 {[%clk 0:02:52]}  Be7 {[%clk 0:02:14]} 10. f4 {[%clk 0:02:51]}  O-O {[%clk 0:02:13]} 11. g4 {[%clk 0:02:49]}  h6 {[%clk 0:01:53]} 12. h4 {[%clk 0:02:44]}  Nh7 {[%clk 0:01:47]} 13. g5 {[%clk 0:02:40]}  hxg5 {[%clk 0:01:44]} 14. hxg5 {[%clk 0:02:40]}  e5 {[%clk 0:01:41]} 15. Nd5 {[%clk 0:02:31]}  exf4 {[%clk 0:01:40]} 16. Bxf4 {[%clk 0:02:25]}  Bxg5 {[%clk 0:01:37]} 17. Bxd6 {[%clk 0:02:22]}  Be6 {[%clk 0:01:32]} 18. Bxf8 {[%clk 0:02:12]}  Bxd5 {[%clk 0:01:32]} 19. exd5 {[%clk 0:01:58]}  Be3+ {[%clk 0:01:31]} 20. Kh2 {[%clk 0:01:58]}  Qh4+ {[%clk 0:01:32]} 21. Bh3 {[%clk 0:01:52]}  Bf4+ {[%clk 0:01:28]} 22. Rxf4 {[%clk 0:01:51]}  Qxf4+ {[%clk 0:01:29]} 23. Kh1 {[%clk 0:01:40]}  Ne5 {[%clk 0:01:12]} 24. Bd6 {[%clk 0:01:34]}  Ng5 {[%clk 0:00:43]} 25. Bxe5 {[%clk 0:01:23]}  Qxe5 {[%clk 0:00:44]} 26. Bg2 {[%clk 0:01:21]}  Ne4 {[%clk 0:00:43]} 27. Qf3 {[%clk 0:01:04]}  Ng3+ {[%clk 0:00:43]} 28. Kg1 {[%clk 0:01:04]}  Re8 {[%clk 0:00:39]} 29. Kf2 {[%clk 0:00:49]}  Nf5 {[%clk 0:00:28]} 30. Rd1 {[%clk 0:00:35]}  Nh4 {[%clk 0:00:25]} 31. Qg4 {[%clk 0:00:33]}  Qe3+ {[%clk 0:00:24]} 32. Kf1 {[%clk 0:00:33]}  Nxg2 {[%clk 0:00:10]} 33. Qxg2 {[%clk 0:00:31]}  Re4 {[%clk 0:00:10]} 34. Rd2 {[%clk 0:00:28]} 1-0


[Site "https://www.chess.com"]

[Event "Titled Tuesday Blitz February 22 Early 2022"]
[White "Ivanisevic, Ivan"]
[Black "Dushyant Sharma"]
[WhiteFideId "912417"]
[BlackFideId "25065130"]
[WhiteElo "2495"]
[BlackElo "2012"]
[Result "1-0"]
[Round "07"]
[TimeControl "180+1"]
[Date "2022.02.22"]
[WhiteClock "0:00:44"]
[BlackClock "0:00:15"]

1. d4 {[%clk 0:02:38]}  d5 {[%clk 0:02:59]} 2. c4 {[%clk 0:02:38]}  e6 {[%clk 0:02:58]} 3. Nf3 {[%clk 0:02:38]}  Nf6 {[%clk 0:02:57]} 4. g3 {[%clk 0:02:39]}  Be7 {[%clk 0:02:57]} 5. Bg2 {[%clk 0:02:38]}  O-O {[%clk 0:02:58]} 6. Qc2 {[%clk 0:02:38]}  dxc4 {[%clk 0:02:56]} 7. Nbd2 {[%clk 0:02:33]}  c5 {[%clk 0:02:56]} 8. dxc5 {[%clk 0:02:31]}  Nc6 {[%clk 0:02:55]} 9. O-O {[%clk 0:02:30]}  e5 {[%clk 0:02:54]} 10. Nxc4 {[%clk 0:02:29]}  e4 {[%clk 0:02:51]} 11. Nfe5 {[%clk 0:02:28]}  Nd4 {[%clk 0:02:46]} 12. Qd1 {[%clk 0:02:26]}  Bxc5 {[%clk 0:02:06]} 13. Be3 {[%clk 0:02:25]}  Be6 {[%clk 0:02:03]} 14. b4 {[%clk 0:02:23]}  Nxe2+ {[%clk 0:01:31]} 15. Qxe2 {[%clk 0:02:21]}  Bxb4 {[%clk 0:01:31]} 16. Rfd1 {[%clk 0:02:19]}  Qe7 {[%clk 0:01:31]} 17. Rab1 {[%clk 0:02:15]}  a5 {[%clk 0:01:22]} 18. Bd4 {[%clk 0:01:48]}  Rad8 {[%clk 0:01:18]} 19. h3 {[%clk 0:01:29]}  Bd5 {[%clk 0:01:16]} 20. Ne3 {[%clk 0:01:27]}  Be6 {[%clk 0:01:08]} 21. Ba1 {[%clk 0:01:26]}  h6 {[%clk 0:00:59]} 22. N5g4 {[%clk 0:01:25]}  Nxg4 {[%clk 0:00:59]} 23. hxg4 {[%clk 0:01:26]}  Qg5 {[%clk 0:00:51]} 24. Bxe4 {[%clk 0:01:17]}  b6 {[%clk 0:00:49]} 25. Nf5 {[%clk 0:01:14]}  Bxf5 {[%clk 0:00:46]} 26. Bxf5 {[%clk 0:01:14]}  Rfe8 {[%clk 0:00:43]} 27. Rxd8 {[%clk 0:01:14]}  Qxd8 {[%clk 0:00:44]} 28. Rd1 {[%clk 0:01:11]}  Qc7 {[%clk 0:00:40]} 29. Qb5 {[%clk 0:01:05]}  Rd8 {[%clk 0:00:28]} 30. Rxd8+ {[%clk 0:01:03]}  Qxd8 {[%clk 0:00:29]} 31. Qe5 {[%clk 0:01:03]}  Bf8 {[%clk 0:00:20]} 32. Bd4 {[%clk 0:01:01]}  Qg5 {[%clk 0:00:19]} 33. Be3 {[%clk 0:00:53]}  Qd8 {[%clk 0:00:18]} 34. Be4 {[%clk 0:00:51]}  Qd1+ {[%clk 0:00:18]} 35. Kg2 {[%clk 0:00:50]}  Qe2 {[%clk 0:00:17]} 36. Bd5 {[%clk 0:00:45]}  Qb5 {[%clk 0:00:15]} 37. Bxf7+ {[%clk 0:00:44]} 1-0


[Site "https://www.chess.com"]